{"text_format":"1","workbook":"xlsx","n_sheets":1,"sheets":["Price Bid Sheet- WC"],"not_rendered":{"charts":0,"images":1,"macros":1,"external_links":0,"defined_names":0,"comments":0,"pivot_tables":0},"unopened":[],"bounds":{"document_bytes":16777216,"sheet_cells":100000,"rows_first":2000,"rows_last":500,"rows_between":2000,"halvings":0,"cell_chars":16384,"cell_head_chars":4096},"cells_cut":0,"cells_raw":0,"read":"whole","date_system":"1900"}

{"sheet":"Price Bid Sheet- WC","index":0,"n_rows":47,"n_cols":7,"rows_kept":47,"cut":false,"hidden":false,"merged":[[0,0,0,6],[1,0,1,6],[2,0,2,5],[4,0,4,6],[5,0,5,6],[44,0,44,4],[46,0,46,6],[43,3,43,6],[38,0,38,5],[39,0,39,4],[40,0,40,4],[41,0,41,4],[42,0,42,4]]}
["            BHARAT HEAVY ELECTRICALS LIMITED JHANSI"]
["                               TOWNSHIP CIVIL DEPARTMENT "]
["  Price Bid ( Two pages)",null,null,null,null,null,"JS-146"]
[null,null,null,null,null,null,"Annexure - I (i)"]
["Name of work :- Misc. White washing, Distempering work in Type – 4, 5 & above type of qtrs. And Public building in Township for 12 months"]
["For Tender Enuiry No: TCX / TW / 21 / 10"]
["S. No.","Ref: DSR 2016","Description of Items ","Unit ","Total Qty.","Rate (Rs.) ","Amount (Rs.)"]
[1,"13.26/229","Providing and applying Plaster of paris putty  of 2mm thickness.","M2",1500,117.08,{"$f":"PRODUCT(E8:F8)","v":175620}]
[2,"13.26/229","Providing and applying Plaster of paris putty  of 2mm thickness. ( Free issue material)","M2",600,90.37,{"$f":"PRODUCT(E9:F9)","v":54222}]
[3,"13.37/239","White washing with lime to give an even shade :New work (three or more coats)","M2",1200,16.97,20364]
[4,"13.39.1/230","Colour washing such as green, blue or buff to give an even shade New work (two or more coats) with a base coat of white washing with lime.","M2",900,23.32,20988]
[5,"13.41.1/230","Distempering with oil bound washable distemper of approved brand and manufacture to give an even shade :New work (two or more coats) over and including water thinnable priming coat with cement primer","M2",1200,91.59,109908]
[6,"13.41.1/230","Distempering with oil bound washable distemper of approved brand and manufacture to give an even shade :New work (two or more coats) over and including water thinnable priming coat with cement primer (free issue material)","M2",900,73.41,66069]
[7,"13.44.1/230","Finishing walls with water proofing cement paint of required shade :New work (Two or more coats applied @ 3.84 kg/10 sqm)","M2",600,56.21,33726]
[8,"13.44.1/230","Finishing walls with water proofing cement paint of required shade :New work (Two or more coats applied @ 3.84 kg/10 sqm) (free issue material)","M2",200,38.49,7698]
[9,"13.47.1/231","Finishing walls with Premium Acrylic Smooth exterior paint with Silicone additives of required shade: New work (Two or more coats applied @ 1.43 ltr/10 sqm\nover and including priming coat of exterior primer applied (@ 2.20 kg/10 sqm)","M2",900,88.85,79965]
[10,"13.47.1/231","Finishing walls with Premium Acrylic Smooth exterior paint with Silicone additives of required shade: New work (Two or more coats applied @ 1.43 ltr/10 sqm\nover and including priming coat of exterior primer applied (@ 2.20 kg/10 sqm) (free issue material)","M2",300,46.41,13922.999999999998]
[11,"13.60.1/232","Wall painting with acrylic emulsion paint of approved brand and manufacture to give an even shade :Two or more coats on new work","M2",1200,80.150000000000006,96180]
[12,"13.60.1/232","Wall painting with acrylic emulsion paint of approved brand and manufacture to give an even shade :Two or more coats on new work (free issue material)","M2",150,51.18,7677]
[13,"13.61.1/232","Painting with synthetic enamel paint of approved brand and manufacture to give an even shade :Two or more coats on new work","M2",400,74.91,29964]
[14,"13.61.1/232","Painting with synthetic enamel paint of approved brand and manufacture to give an even shade :Two or more coats on new work (free issue material)","M2",100,51.18,5118]
[15,"14.42.1/246","White washing with lime to give an even shade :Old work (two or more coats)","M2",1300,10.050000000000001,13065.000000000002]
[16,"14.42.1/246","White washing with lime to give an even shade :Old work (two or more coats) (free issue material)","M2",700,7.77,5439]
[17,"14.42.2/246","White washing with lime to give an even shade :Old work (one or more coats)","M2",1800,6.2,11160]
[18,"14.42.2/246","White washing with lime to give an even shade :Old work (one or more coats) ( free issue material )","M2",1200,4.59,5508]
[19,"14.43/246","Removing white or colour wash by scrapping and sand papering\nand preparing the surface smooth including necessary repairs to\nscratches etc. complete","M2",2500,8.35,20875]
[20,"14.45.1/246","Distempering with oil bound washable distemper of approved brand and manufacture to give an even shade :Old work (one or more coats)","M2",1500,32.57,48855]
[21,"14.45.1/246","Distempering with oil bound washable distemper of approved brand and manufacture to give an even shade :Old work (one or more coats) (free issue material)","M2",700,24.44,17108]
[22,"14.46/246","Removing dry or oil bound distemper, water proofing cement paint and the like by scrapping, sand papering and preparing the surface smooth including necessary repairs to scratches etc. complete.","M2",300,10.8,3240]
[23,"14.53.1/247","Wall painting with plastic emulsion paint of approved brand and manufacture to give an even shade: 14.53.1 One or more coats on old work","M2",1200,52.63,63156]
[24,"14.53.1/247","Wall painting with plastic emulsion paint of approved brand and manufacture to give an even shade: 14.53.1 One or more coats on old work (free issue material)","M2",900,34.119999999999997,30707.999999999996]
[25,"14.54.1/247","Painting with synthetic enamel paint of approved brand and\nmanufacture of required colour to give an even shade :One or more coats on old work  ","M2",1200,49.16,58991.999999999993]
[26,"14.54.1/247","Painting with synthetic enamel paint of approved brand and\nmanufacture of required colour to give an even shade :One or more coats on old work (free issue material)","M2",900,34.119999999999997,30707.999999999996]
[27,"14.58.1/247","French spirit polishing :","M2",300,104.31,31293]
[28,"14.58.1/247","French spirit polishing :  (free issue material)","M2",200,91.58,18316]
[29,"14.64.1/248","Finishing walls with water proofing cement paint of required shade Old work (one or more coats applied @ 2.20 kg/10 sqm) over priming coat of primer applied @ 0.80 litrs/10 sqm complete including cost of Priming coat.","M2",700,53.23,37261]
[30,"14.66.1/248","Finishing walls with Acrylic Smooth exterior paint of required shade:Old work (Two or more coat applied @ 1.67 ltr/ 10 sqm) on existing cement paint surface","M2",600,63.9,38340]
[31,"DSR 2016","All other items not covered above but covered in  DSR 2016.","Basic Value",1,15000,15000]
["Total A1",null,null,null,null,null,{"$f":"SUM(G8:G38)","v":1170446}]
["Section weightage percentage",null,null,null,null,null,1]
["Quoted section amount Sec A ( derived from the Quoted Total Price Bid Value",null,null,null,null,null,{"$f":"G43","v":0}]
["Sectional multiplying factor",null,"Total\"A=A1 x \"",null,null,null,{"$f":"G43/G39","v":0}]
["Total Amount To be quoted by contractor ( in figure )"]
[null,null,"In Words",{"$f":"RUP(G43)","v":0}]
["GST extra as applicable"]
[]
["Note -Contractor should quote the prices in cell no. G 43 of excel sheet and then take print out to submit the price bid"]